[Event "EYCC Open-U18 2019"]
[Site "Bratislava"]
[Date "2019.08.09"]
[Round "8.17"]
[White "Blohberger, Felix"]
[Black "Hurdzan, Tomas"]
[Result "1/2-1/2"]
[ECO "A06"]
[WhiteElo "2476"]
[BlackElo "2231"]
[Annotator "ChessBase"]
[PlyCount "151"]
[EventDate "2019.08.02"]
[EventType "swiss"]
[EventCountry "SVK"]
[SourceTitle "playchess.com"]
[Source "ChessBase"]
[SourceQuality "1"]
[TimeControl "40/5400+30:1800+30"]

1. Nf3 {[%emt 0:00:00]} d5 {[%emt 0:00:00]} 2. g3 {[%emt 0:00:03]} Bg4 {[%emt 0:00:13]} 3. Bg2 {[%emt 0:00:27]} Nd7 {[%emt 0:00:09]} 4. h3 {[%emt 0:00:46]} Bh5 {[%emt 0:00:15]} 5. c4 {[%emt 0:01:18]} e6 {[%emt 0:02:19]} 6. d3 {[%emt 0:04:21]} c6 {[%emt 0:00:49]} 7. O-O {[%emt 0:01:10]} Ngf6 {[%emt 0:00:08]} 8. cxd5 {[%emt 0:02:04]} exd5 {[%emt 0:01:05]} 9. Nc3 {[%emt 0:00:14]} Bc5 {[%emt 0:04:36]} 10. Qb3 {[%emt 0:00:40]} Bb6 {[%emt 0:00:42]} 11. Na4 {[%emt 0:00:11]} Bxf3 {[%emt 0:03:06]} 12. Bxf3 {[%emt 0:00:06]} O-O {[%emt 0:00:08]} 13. Nxb6 {[%emt 0:00:25]} Nc5 {[%emt 0:01:01]} 14. Qc2 {[%emt 0:02:57]} axb6 {[%emt 0:00:51]} 15. e3 {[%emt 0:10:31]} Qd6 {[%emt 0:12:57]} 16. b3 {[%emt 0:05:51]} Rfe8 {[%emt 0:02:32]} 17. Bb2 {[%emt 0:02:20]} h6 {[%emt 0:03:53]} 18. Bg2 {[%emt 0:01:14]} Nfd7 {[%emt 0:09:23]} 19. a3 {[%emt 0:07:38]} Qg6 {[%emt 0:03:31]} 20. Rad1 {[%emt 0:02:05]} Nf6 {[%emt 0:04:31]} 21. Rfe1 {[%emt 0:02:36]} h5 {[%emt 0:01:44]} 22. a4 {[%emt 0:04:08]} Ncd7 {[%emt 0:06:32]} 23. Qc3 {[%emt 0:08:43]} Re7 {[%emt 0:04:03]} 24. e4 {[%emt 0:04:44]} dxe4 {[%emt 0:04:12]} 25. dxe4 {[%emt 0:00:20]} Nc5 {[%emt 0:01:51]} 26. e5 {[%emt 0:03:40]} Nd5 {[%emt 0:07:50]} 27. Qc4 {[%emt 0:11:21]} Qe6 {[%emt 0:03:38]} 28. Ba3 {[%emt 0:04:17]} Ree8 {[%emt 0:07:19]} 29. Bxc5 {[%emt 0:05:49]} bxc5 {[%emt 0:00:04]} 30. Qxc5 {[%emt 0:00:56]} Rad8 {[%emt 0:00:57]} 31. h4 {[%emt 0:00:53]} Qe7 {[%emt 0:01:41]} 32. Qxe7 {[%emt 0:02:37]} Rxe7 {[%emt 0:01:09]} 33. Rd4 {[%emt 0:05:23]} Red7 {[%emt 0:01:06]} 34. Bh3 {[%emt 0:00:59]} Re7 {[%emt 0:00:05]} 35. f4 {[%emt 0:01:04]} g6 {[%emt 0:00:58]} 36. Red1 {[%emt 0:02:13]} Kg7 {[%emt 0:00:28]} 37. Bg2 {[%emt 0:00:43]} Red7 {[%emt 0:00:05]} 38. Bh3 {[%emt 0:01:30]} Re7 {[%emt 0:00:24]} 39. Bg2 {[%emt 0:00:44]} Red7 {[%emt 0:00:06]} 40. a5 {[%emt 0:00:00]} f6 {[%emt 0:00:00]} 41. e6 {[%emt 0:12:52]} Rd6 {[%emt 0:01:35]} 42. e7 {[%emt 0:00:14]} Re8 {[%emt 0:00:08]} 43. Bxd5 {[%emt 0:00:05]} cxd5 {[%emt 0:00:08]} 44. Rxd5 {[%emt 0:00:08]} Rxd5 {[%emt 0:00:08]} 45. Rxd5 {[%emt 0:00:05]} Rxe7 {[%emt 0:00:03]} 46. Rb5 {[%emt 0:00:16]} Kf7 {[%emt 0:03:00]} 47. Rb6 {[%emt 0:00:17]} Kg7 {[%emt 0:01:25]} 48. b4 {[%emt 0:00:13]} Kf7 {[%emt 0:00:05]} 49. Kf2 {[%emt 0:00:04]} Kg7 {[%emt 0:00:19]} 50. b5 {[%emt 0:02:55]} Kf7 {[%emt 0:02:37]} 51. Kf3 {[%emt 0:01:41]} Rd7 {[%emt 0:09:42]} 52. Ke4 {[%emt 0:01:26]} Ke7 {[%emt 0:00:10]} 53. a6 {[%emt 0:06:47]} bxa6 {[%emt 0:00:24]} 54. bxa6 {[%emt 0:00:06]} Rd1 {[%emt 0:00:16]} 55. a7 {[%emt 0:00:33]} Ra1 {[%emt 0:00:06]} 56. Rb7+ {[%emt 0:00:03]} Ke6 {[%emt 0:00:24]} 57. Kd4 {[%emt 0:00:13]} Kf5 {[%emt 0:04:53]} 58. Rg7 {[%emt 0:00:30]} Ra5 {[%emt 0:01:38]} 59. Kc4 {[%emt 0:00:09]} Ke4 {[%emt 0:00:49]} 60. Kb4 {[%emt 0:02:08]} Ra1 {[%emt 0:00:14]} 61. Kb5 {[%emt 0:00:06]} Kf3 {[%emt 0:00:21]} 62. Kb6 {[%emt 0:00:12]} Kxg3 {[%emt 0:00:25]} 63. Rxg6+ {[%emt 0:02:10]} Kxf4 {[%emt 0:07:58]} 64. Rxf6+ {[%emt 0:04:44]} Kg4 {[%emt 0:00:03]} 65. Rf8 {[%emt 0:00:06]} Kxh4 {[%emt 0:00:25]} 66. a8=Q {[%emt 0:00:06]} Rxa8 {[%emt 0:00:02]} 67. Rxa8 {[%emt 0:00:08]} Kg3 {[%emt 0:00:06]} 68. Kc5 {[%emt 0:00:04]} h4 {[%emt 0:00:04]} 69. Kd4 {[%emt 0:00:04]} h3 {[%emt 0:03:11]} 70. Ke3 {[%emt 0:00:05]} Kg2 {[%emt 0:00:35]} 71. Ra2+ {[%emt 0:04:51]} Kg3 {[%emt 0:00:03]} 72. Ra7 {[%emt 0:01:58]} Kg2 {[%emt 0:00:09]} 73. Kf4 {[%emt 0:03:29]} h2 {[%emt 0:00:23]} 74. Ra2+ {[%emt 0:00:04]} Kh3 {[%emt 0:00:21]} 75. Rxh2+ {[%emt 0:00:15]} Kxh2 {[%emt 0:00:05]} 76. Ke4 1/2-1/2

[Event "EYCC Open-U18 2019"]
[Site "Bratislava"]
[Date "2019.08.09"]
[Round "8.18"]
[White "Kotau, Arseni"]
[Black "Mitsis, Georgios"]
[Result "0-1"]
[ECO "E01"]
[WhiteElo "2227"]
[BlackElo "2399"]
[Annotator "NA"]
[PlyCount "80"]
[EventDate "2019.08.02"]
[EventType "swiss"]
[EventCountry "SVK"]
[SourceTitle "playchess.com"]
[Source "ChessBase"]
[SourceQuality "1"]
[TimeControl "40/5400+30:1800+30"]

1. d4 {[%emt 0:00:00]} Nf6 {[%emt 0:00:00]} 2. c4 {[%emt 0:00:00]} e6 {[%emt 0:00:00]} 3. g3 {[%emt 0:00:00]} d5 {[%emt 0:00:00]} 4. Bg2 {[%emt 0:00:00]} Bb4+ {[%emt 0:00:24]} 5. Bd2 {[%emt 0:00:00]} Bd6 {[%emt 0:01:03]} 6. Nf3 {[%emt 0:10:43]} c6 {[%emt 0:00:54]} 7. Qc2 {[%emt 0:00:09]} Nbd7 {[%emt 0:00:12]} 8. O-O {[%emt 0:04:08]} O-O {[%emt 0:02:17]} 9. Rd1 {[%emt 0:01:07]} Qe7 {[%emt 0:03:40]} 10. a3 {[%emt 0:13:00]} Re8 {[%emt 0:04:40]} 11. Bg5 {[%emt 0:03:56]} h6 {[%emt 0:02:08]} 12. Bc1 {[%emt 0:00:05]} e5 {[%emt 0:01:15]} 13. cxd5 {[%emt 0:07:13]} cxd5 {[%emt 0:01:53]} 14. dxe5 {[%emt 0:00:52]} Nxe5 {[%emt 0:00:07]} 15. Nc3 {[%emt 0:01:57]} Nc6 {[%emt 0:13:31]} 16. b4 {[%emt 0:08:25]} Be6 {[%emt 0:02:02]} 17. Nb5 {[%emt 0:01:37]} Bb8 {[%emt 0:02:46]} 18. Bb2 {[%emt 0:01:15]} a5 {[%emt 0:00:45]} 19. Nfd4 {[%emt 0:05:23]} Ra6 {[%emt 0:07:50]} 20. Nxe6 {[%emt 0:16:12]} fxe6 {[%emt 0:00:23]} 21. bxa5 {[%emt 0:01:01]} Nxa5 {[%emt 0:05:05]} 22. e4 {[%emt 0:01:36]} Nxe4 {[%emt 0:02:13]} 23. Bxe4 {[%emt 0:00:12]} dxe4 {[%emt 0:00:05]} 24. Qxe4 {[%emt 0:00:29]} Nb3 {[%emt 0:00:07]} 25. Rab1 {[%emt 0:00:20]} Nc5 {[%emt 0:00:10]} 26. Qg4 {[%emt 0:01:02]} e5 {[%emt 0:01:32]} 27. Rbc1 {[%emt 0:02:30]} Kh8 {[%emt 0:08:08]} 28. Nc3 {[%emt 0:01:08]} Qf7 {[%emt 0:15:31]} 29. Nd5 {[%emt 0:01:10]} Ba7 {[%emt 0:01:26]} 30. Rc2 {[%emt 0:07:08]} Rd6 {[%emt 0:02:58]} 31. Ne3 {[%emt 0:01:56]} Rxd1+ {[%emt 0:00:06]} 32. Qxd1 {[%emt 0:00:03]} Ne4 {[%emt 0:00:15]} 33. Kg2 {[%emt 0:06:15]} Bxe3 {[%emt 0:00:21]} 34. fxe3 {[%emt 0:00:17]} Qb3 {[%emt 0:00:05]} 35. Bxe5 {[%emt 0:01:24]} Kh7 {[%emt 0:05:54]} 36. Bd4 {[%emt 0:03:44]} Rf8 {[%emt 0:00:45]} 37. Qc1 {[%emt 0:01:15]} Qd5 {[%emt 0:00:16]} 38. Kg1 {[%emt 0:00:51]} Ng5 {[%emt 0:00:18]} 39. Rg2 {[%emt 0:00:30]} Nh3+ {[%emt 0:00:56]} 40. Kh1 {[%emt 0:00:00]} Qe4 {[%emt 0:00:00]} 0-1

[Event "EYCC Open-U18 2019"]
[Site "Bratislava"]
[Date "2019.08.09"]
[Round "8.19"]
[White "Fus, Jakub"]
[Black "Garanin, Aleksei"]
[Result "1-0"]
[ECO "E97"]
[WhiteElo "2341"]
[BlackElo "2192"]
[Annotator "NA"]
[PlyCount "65"]
[EventDate "2019.08.02"]
[EventType "swiss"]
[EventCountry "SVK"]
[SourceTitle "playchess.com"]
[Source "ChessBase"]
[SourceQuality "1"]
[TimeControl "40/5400+30:1800+30"]

1. d4 {[%emt 0:00:00]} Nf6 {[%emt 0:00:00]} 2. c4 {[%emt 0:00:00]} g6 {[%emt 0:00:00]} 3. Nc3 {[%emt 0:00:11]} Bg7 {[%emt 0:00:00]} 4. e4 {[%emt 0:00:27]} d6 {[%emt 0:00:00]} 5. Nf3 {[%emt 0:00:24]} O-O {[%emt 0:00:00]} 6. Be2 {[%emt 0:00:31]} e5 {[%emt 0:00:00]} 7. O-O {[%emt 0:00:26]} Nc6 {[%emt 0:00:04]} 8. d5 {[%emt 0:01:23]} Ne7 {[%emt 0:00:05]} 9. Nd2 {[%emt 0:01:08]} Nd7 {[%emt 0:01:27]} 10. b4 {[%emt 0:00:30]} f5 {[%emt 0:00:36]} 11. a4 {[%emt 0:01:33]} Nf6 {[%emt 0:02:20]} 12. f3 {[%emt 0:07:09]} f4 {[%emt 0:04:25]} 13. c5 {[%emt 0:01:16]} g5 {[%emt 0:02:01]} 14. Nc4 {[%emt 0:00:58]} Ng6 {[%emt 0:01:54]} 15. cxd6 {[%emt 0:05:49]} cxd6 {[%emt 0:00:02]} 16. Nb5 {[%emt 0:00:19]} Ne8 {[%emt 0:08:05]} 17. Bd2 {[%emt 0:02:29]} Rf6 {[%emt 0:03:56]} 18. Be1 {[%emt 0:01:14]} Nh4 {[%emt 0:06:01]} 19. Bf2 {[%emt 0:07:10]} b6 {[%emt 0:38:28]} 20. g3 {[%emt 0:29:13]} fxg3 {[%emt 0:01:14]} 21. hxg3 {[%emt 0:00:30]} Ng6 {[%emt 0:03:07]} 22. Kg2 {[%emt 0:04:48]} Qd7 {[%emt 0:09:21]} 23. Rh1 {[%emt 0:00:06]} Qf7 {[%emt 0:00:09]} 24. Be3 {[%emt 0:02:32]} h6 {[%emt 0:00:44]} 25. a5 {[%emt 0:01:28]} Bd7 {[%emt 0:00:38]} 26. Nd2 {[%emt 0:00:06]} bxa5 {[%emt 0:03:09]} 27. Rxa5 {[%emt 0:00:39]} a6 {[%emt 0:00:13]} 28. Na7 {[%emt 0:03:07]} Nf4+ {[%emt 0:04:31]} 29. gxf4 {[%emt 0:00:59]} gxf4 {[%emt 0:00:02]} 30. Bf2 {[%emt 0:02:36]} Rg6+ {[%emt 0:02:46]} 31. Kf1 {[%emt 0:00:26]} Qe7 {[%emt 0:01:20]} 32. Nc6 {[%emt 0:01:15]} Qg5 {[%emt 0:00:31]} 33. Rg1 {[%emt 0:00:53]} 1-0

[Event "EYCC Open-U18 2019"]
[Site "Bratislava"]
[Date "2019.08.09"]
[Round "8.20"]
[White "Guerra Rivera, Salvador"]
[Black "Brinovec, David"]
[Result "1-0"]
[ECO "C64"]
[WhiteElo "2355"]
[BlackElo "2205"]
[Annotator "NA"]
[PlyCount "58"]
[EventDate "2019.08.02"]
[EventType "swiss"]
[EventCountry "SVK"]
[SourceTitle "playchess.com"]
[Source "ChessBase"]
[SourceQuality "1"]
[TimeControl "40/5400+30:1800+30"]

1. e4 {[%emt 0:00:00]} e5 {[%emt 0:00:00]} 2. Nf3 {[%emt 0:00:00]} Nc6 {[%emt 0:00:00]} 3. Bb5 {[%emt 0:00:06]} Bc5 {[%emt 0:00:00]} 4. Nxe5 {[%emt 0:00:16]} Nxe5 {[%emt 0:02:57]} 5. d4 {[%emt 0:00:06]} c6 {[%emt 0:08:17]} 6. dxc5 {[%emt 0:02:51]} cxb5 {[%emt 0:07:12]} 7. Nc3 {[%emt 0:00:10]} Nf6 {[%emt 0:21:26]} 8. f4 {[%emt 0:09:18]} Nc4 {[%emt 0:02:17]} 9. e5 {[%emt 0:03:18]} O-O {[%emt 0:06:27]} 10. exf6 {[%emt 0:07:43]} Re8+ {[%emt 0:00:39]} 11. Kf2 {[%emt 0:02:13]} Qxf6 {[%emt 0:01:13]} 12. Re1 {[%emt 0:01:56]} Rxe1 {[%emt 0:07:17]} 13. Qxe1 {[%emt 0:00:07]} h6 {[%emt 0:12:26]} 14. Qe8+ {[%emt 0:09:41]} Kh7 {[%emt 0:00:06]} 15. Qe4+ {[%emt 0:00:18]} g6 {[%emt 0:00:27]} 16. Nd5 {[%emt 0:04:21]} Qh4+ {[%emt 0:02:40]} 17. Kg1 {[%emt 0:00:28]} d6 {[%emt 0:04:41]} 18. g3 {[%emt 0:01:02]} Qd8 {[%emt 0:01:27]} 19. b3 {[%emt 0:02:50]} Bf5 {[%emt 0:01:06]} 20. Qf3 {[%emt 0:00:30]} Na5 {[%emt 0:03:01]} 21. Bb2 {[%emt 0:00:15]} b4 {[%emt 0:00:52]} 22. Qe3 {[%emt 0:05:01]} Nc6 {[%emt 0:00:41]} 23. Rd1 {[%emt 0:00:23]} h5 {[%emt 0:01:44]} 24. Nf6+ {[%emt 0:00:49]} Kh6 {[%emt 0:00:14]} 25. g4 {[%emt 0:02:52]} Bxg4 {[%emt 0:00:43]} 26. f5+ {[%emt 0:00:12]} g5 {[%emt 0:01:48]} 27. Rxd6 {[%emt 0:00:11]} Qxd6 {[%emt 0:01:24]} 28. cxd6 {[%emt 0:00:04]} Bxf5 {[%emt 0:00:23]} 29. h4 {[%emt 0:00:05]} Nb8 1-0

[Event "EYCC Open-U18 2019"]
[Site "Bratislava"]
[Date "2019.08.09"]
[Round "8.21"]
[White "Oboladze, Luka"]
[Black "Kukas, Oliver"]
[Result "1/2-1/2"]
[ECO "D83"]
[WhiteElo "2323"]
[BlackElo "2082"]
[Annotator "NA"]
[PlyCount "95"]
[EventDate "2019.08.02"]
[EventType "swiss"]
[EventCountry "SVK"]
[SourceTitle "playchess.com"]
[Source "ChessBase"]
[SourceQuality "1"]
[TimeControl "40/5400+30:1800+30"]

1. d4 {[%emt 0:00:00]} Nf6 {[%emt 0:00:00]} 2. c4 {[%emt 0:00:00]} g6 {[%emt 0:00:00]} 3. Nc3 {[%emt 0:00:00]} d5 {[%emt 0:00:00]} 4. Bf4 {[%emt 0:00:00]} Bg7 {[%emt 0:00:00]} 5. e3 {[%emt 0:00:00]} O-O {[%emt 0:00:11]} 6. Rc1 {[%emt 0:00:19]} c6 {[%emt 0:00:11]} 7. Nf3 {[%emt 0:00:32]} Be6 {[%emt 0:00:11]} 8. Qb3 {[%emt 0:08:49]} Qb6 {[%emt 0:00:08]} 9. c5 {[%emt 0:01:01]} Qxb3 10. axb3 {[%emt 0:00:01]} Nbd7 {[%emt 0:07:20]} 11. h3 {[%emt 0:01:32]} h6 {[%emt 0:06:17]} 12. b4 {[%emt 0:02:34]} a6 {[%emt 0:00:14]} 13. Nd2 {[%emt 0:03:47]} g5 {[%emt 0:02:13]} 14. Bh2 {[%emt 0:02:13]} Bf5 {[%emt 0:01:55]} 15. Nb3 {[%emt 0:09:58]} Ne8 {[%emt 0:08:23]} 16. Na5 {[%emt 0:08:48]} Ra7 {[%emt 0:00:24]} 17. g4 {[%emt 0:08:22]} Be6 {[%emt 0:12:58]} 18. Bd3 {[%emt 0:13:51]} f5 {[%emt 0:01:45]} 19. gxf5 {[%emt 0:00:59]} Bxf5 {[%emt 0:01:18]} 20. Bxf5 {[%emt 0:02:06]} Rxf5 {[%emt 0:00:06]} 21. Na4 {[%emt 0:00:18]} Rf7 {[%emt 0:06:37]} 22. Nb6 {[%emt 0:01:29]} e6 {[%emt 0:01:31]} 23. Nxd7 {[%emt 0:06:18]} Rxd7 {[%emt 0:00:01]} 24. h4 {[%emt 0:02:00]} g4 {[%emt 0:01:54]} 25. h5 {[%emt 0:03:42]} Re7 {[%emt 0:11:31]} 26. Rg1 {[%emt 0:03:46]} Nf6 {[%emt 0:00:51]} 27. Ke2 {[%emt 0:00:45]} Ra8 {[%emt 0:00:38]} 28. Be5 {[%emt 0:01:06]} Nxh5 {[%emt 0:00:48]} 29. Rxg4 {[%emt 0:00:04]} Kh7 {[%emt 0:00:31]} 30. Bd6 {[%emt 0:01:34]} Rf7 {[%emt 0:00:40]} 31. Rh1 {[%emt 0:00:21]} Nf6 {[%emt 0:01:37]} 32. Rgh4 {[%emt 0:00:23]} Re8 {[%emt 0:01:45]} 33. Rf4 {[%emt 0:02:29]} Rd8 {[%emt 0:01:34]} 34. f3 {[%emt 0:01:48]} Rdd7 {[%emt 0:00:45]} 35. Rfh4 {[%emt 0:01:43]} Ng8 {[%emt 0:01:18]} 36. Nb3 {[%emt 0:01:08]} Rf6 {[%emt 0:01:46]} 37. Nd2 {[%emt 0:01:52]} Rg6 {[%emt 0:00:26]} 38. Kf2 {[%emt 0:00:20]} Bf6 {[%emt 0:00:34]} 39. R4h2 {[%emt 0:02:19]} Rdg7 {[%emt 0:00:34]} 40. Nf1 {[%emt 0:00:00]} Be7 {[%emt 0:00:00]} 41. Bg3 {[%emt 0:04:15]} Bg5 {[%emt 0:08:59]} 42. Rh3 {[%emt 0:00:44]} Rf7 {[%emt 0:02:36]} 43. Nh2 {[%emt 0:02:06]} Bd8 {[%emt 0:04:49]} 44. Bf4 {[%emt 0:12:25]} Bg5 {[%emt 0:10:46]} 45. Bb8 {[%emt 0:01:19]} Bd8 {[%emt 0:02:08]} 46. Bg3 {[%emt 0:01:49]} Nf6 {[%emt 0:00:49]} 47. Bf4 {[%emt 0:04:18]} Bc7 {[%emt 0:01:14]} 48. Bxc7 {[%emt 0:00:11]} 1/2-1/2

[Event "EYCC Open-U18 2019"]
[Site "Bratislava"]
[Date "2019.08.09"]
[Round "8.22"]
[White "Anghelus, Alin-Gabriel"]
[Black "Papp, Levente"]
[Result "1-0"]
[ECO "C01"]
[WhiteElo "2107"]
[BlackElo "2362"]
[Annotator "NA"]
[PlyCount "113"]
[EventDate "2019.08.02"]
[EventType "swiss"]
[EventCountry "SVK"]
[SourceTitle "playchess.com"]
[Source "ChessBase"]
[SourceQuality "1"]
[TimeControl "40/5400+30:1800+30"]

1. e4 {[%emt 0:00:00]} e6 {[%emt 0:00:00]} 2. d4 {[%emt 0:00:00]} d5 {[%emt 0:00:00]} 3. exd5 exd5 {[%emt 0:00:00]} 4. Nf3 {[%emt 0:00:31]} Nc6 {[%emt 0:00:00]} 5. Bb5 {[%emt 0:01:14]} Bd6 {[%emt 0:00:00]} 6. O-O {[%emt 0:02:22]} Nge7 {[%emt 0:00:22]} 7. c4 {[%emt 0:04:53]} dxc4 {[%emt 0:01:10]} 8. Bxc4 {[%emt 0:01:44]} Bf5 {[%emt 0:04:30]} 9. Nc3 {[%emt 0:01:10]} O-O {[%emt 0:03:56]} 10. Bg5 {[%emt 0:04:25]} Na5 {[%emt 0:02:12]} 11. Be2 {[%emt 0:00:48]} f6 {[%emt 0:06:57]} 12. Be3 {[%emt 0:02:52]} c6 {[%emt 0:01:04]} 13. a3 {[%emt 0:05:44]} Be6 {[%emt 0:08:59]} 14. Nd2 {[%emt 0:03:34]} b5 {[%emt 0:08:00]} 15. b4 {[%emt 0:00:47]} Nb7 {[%emt 0:00:05]} 16. Bf3 {[%emt 0:00:55]} Nd5 {[%emt 0:01:03]} 17. Nxd5 {[%emt 0:01:32]} cxd5 {[%emt 0:01:08]} 18. Nb3 {[%emt 0:00:52]} Qd7 {[%emt 0:08:02]} 19. Nc5 {[%emt 0:03:08]} Bxc5 {[%emt 0:00:18]} 20. dxc5 {[%emt 0:00:28]} Nd8 {[%emt 0:00:20]} 21. Bf4 {[%emt 0:00:10]} Nf7 {[%emt 0:00:06]} 22. Re1 {[%emt 0:00:31]} Rad8 {[%emt 0:00:36]} 23. Qd4 {[%emt 0:00:58]} Rfe8 {[%emt 0:08:05]} 24. Rac1 {[%emt 0:04:40]} Qc6 {[%emt 0:00:15]} 25. Re3 {[%emt 0:01:53]} g5 {[%emt 0:08:37]} 26. Bg3 {[%emt 0:02:36]} f5 {[%emt 0:01:38]} 27. Be5 {[%emt 0:06:17]} f4 {[%emt 0:03:40]} 28. Ree1 {[%emt 0:00:49]} g4 {[%emt 0:19:31]} 29. Be2 {[%emt 0:03:37]} Bf5 {[%emt 0:02:00]} 30. Bxf4 {[%emt 0:00:47]} Re4 {[%emt 0:03:10]} 31. Qd2 {[%emt 0:00:05]} Rde8 {[%emt 0:04:02]} 32. f3 {[%emt 0:01:02]} R4e6 {[%emt 0:00:07]} 33. fxg4 {[%emt 0:00:43]} Be4 {[%emt 0:00:01]} 34. Bf3 {[%emt 0:01:56]} d4 {[%emt 0:01:08]} 35. Bxe4 {[%emt 0:00:28]} Rxe4 {[%emt 0:00:03]} 36. Rxe4 {[%emt 0:00:11]} Rxe4 {[%emt 0:00:44]} 37. Re1 {[%emt 0:01:05]} Nd8 {[%emt 0:00:40]} 38. Kf2 {[%emt 0:08:56]} Ne6 {[%emt 0:02:32]} 39. g3 {[%emt 0:01:08]} a6 {[%emt 0:00:49]} 40. g5 {[%emt 0:00:00]} Qd5 {[%emt 0:00:00]} 41. Rxe4 {[%emt 0:03:56]} Qxe4 {[%emt 0:04:36]} 42. Qe2 {[%emt 0:01:30]} Qd5 {[%emt 0:07:13]} 43. Qe5 {[%emt 0:01:00]} Qa2+ {[%emt 0:00:19]} 44. Kf3 {[%emt 0:00:51]} d3 {[%emt 0:15:15]} 45. Be3 {[%emt 0:07:13]} Qb3 {[%emt 0:03:24]} 46. Qd6 {[%emt 0:02:42]} Kf7 {[%emt 0:02:47]} 47. c6 {[%emt 0:04:13]} Qc4 {[%emt 0:00:34]} 48. h4 {[%emt 0:00:53]} d2 {[%emt 0:01:33]} 49. Qxd2 {[%emt 0:00:35]} Qxc6+ {[%emt 0:00:06]} 50. Kf2 {[%emt 0:00:13]} Qe4 {[%emt 0:01:22]} 51. Qe2 {[%emt 0:00:54]} Kg8 {[%emt 0:01:54]} 52. g4 {[%emt 0:01:31]} Qh1 {[%emt 0:00:21]} 53. Kg3 {[%emt 0:00:17]} Qa1 54. Qd3 {[%emt 0:02:07]} Qe1+ {[%emt 0:00:52]} 55. Kg2 {[%emt 0:01:19]} Qxh4 {[%emt 0:00:50]} 56. Qf5 {[%emt 0:00:44]} Ng7 {[%emt 0:00:19]} 57. Qd5+ {[%emt 0:00:09]} 1-0

[Event "EYCC Open-U18 2019"]
[Site "Bratislava"]
[Date "2019.08.09"]
[Round "8.23"]
[White "Nordquelle, Daniel"]
[Black "Boev, Viktor"]
[Result "1/2-1/2"]
[ECO "B40"]
[WhiteElo "2181"]
[BlackElo "2246"]
[Annotator "NA"]
[PlyCount "101"]
[EventDate "2019.08.02"]
[EventType "swiss"]
[EventCountry "SVK"]
[SourceTitle "playchess.com"]
[Source "ChessBase"]
[SourceQuality "1"]
[TimeControl "40/5400+30:1800+30"]

1. e4 {[%emt 0:00:00]} c5 {[%emt 0:00:00]} 2. Nf3 {[%emt 0:00:39]} e6 {[%emt 0:00:00]} 3. c4 {[%emt 0:00:07]} Nc6 {[%emt 0:00:35]} 4. Nc3 {[%emt 0:00:18]} Nge7 {[%emt 0:03:45]} 5. Be2 {[%emt 0:07:34]} a6 {[%emt 0:02:39]} 6. O-O {[%emt 0:02:22]} Qc7 {[%emt 0:05:27]} 7. Re1 {[%emt 0:05:21]} Nd4 {[%emt 0:09:33]} 8. Nxd4 {[%emt 0:07:06]} cxd4 {[%emt 0:00:07]} 9. Nb1 {[%emt 0:00:45]} g6 {[%emt 0:01:05]} 10. d3 {[%emt 0:00:26]} Bg7 {[%emt 0:00:06]} 11. b4 {[%emt 0:08:30]} O-O {[%emt 0:00:42]} 12. a4 {[%emt 0:01:56]} d5 {[%emt 0:05:11]} 13. exd5 {[%emt 0:04:51]} exd5 {[%emt 0:02:36]} 14. c5 {[%emt 0:22:52]} a5 {[%emt 0:02:02]} 15. bxa5 Rxa5 16. Na3 {[%emt 0:04:16]} Bd7 {[%emt 0:05:09]} 17. Bg5 {[%emt 0:10:33]} Bxa4 {[%emt 0:15:00]} 18. Qd2 {[%emt 0:00:30]} Nc8 {[%emt 0:00:36]} 19. Qb4 {[%emt 0:02:12]} Qxc5 {[%emt 0:00:00]} 20. Qxb7 {[%emt 0:00:33]} Bc6 {[%emt 0:04:16]} 21. Qb2 {[%emt 0:00:43]} Qc3 {[%emt 0:00:20]} 22. Qa2 {[%emt 0:00:49]} Qc5 {[%emt 0:02:42]} 23. Rec1 {[%emt 0:02:37]} Qd6 {[%emt 0:00:51]} 24. Bd2 {[%emt 0:00:14]} Ra6 {[%emt 0:00:47]} 25. Qb2 {[%emt 0:01:39]} Rb6 {[%emt 0:00:27]} 26. Qa2 {[%emt 0:02:07]} Ne7 {[%emt 0:00:28]} 27. Ba5 {[%emt 0:01:00]} Rb7 {[%emt 0:06:34]} 28. Rcb1 {[%emt 0:02:25]} Rfb8 {[%emt 0:04:47]} 29. Rxb7 {[%emt 0:00:14]} Rxb7 {[%emt 0:00:06]} 30. Nc2 {[%emt 0:00:17]} Nf5 {[%emt 0:03:52]} 31. Bd2 {[%emt 0:01:07]} h5 {[%emt 0:00:26]} 32. g3 {[%emt 0:03:14]} Be5 {[%emt 0:01:29]} 33. Kg2 {[%emt 0:02:42]} Kg7 {[%emt 0:02:44]} 34. Rb1 {[%emt 0:01:02]} Rxb1 {[%emt 0:00:37]} 35. Qxb1 {[%emt 0:00:01]} Bd7 {[%emt 0:00:27]} 36. Ne1 {[%emt 0:01:48]} Qe6 {[%emt 0:00:56]} 37. Qd1 {[%emt 0:01:53]} Bf6 {[%emt 0:11:54]} 38. Nf3 {[%emt 0:00:30]} Ba4 {[%emt 0:02:00]} 39. Qe1 {[%emt 0:01:06]} Bc2 {[%emt 0:00:09]} 40. Bf4 {[%emt 0:00:00]} Qb6 {[%emt 0:00:00]} 41. Qd2 {[%emt 0:06:41]} Qb1 {[%emt 0:05:06]} 42. h4 {[%emt 0:02:26]} Ba4 {[%emt 0:02:26]} 43. Be5 {[%emt 0:03:00]} Bb5 {[%emt 0:01:52]} 44. Bxf6+ {[%emt 0:05:47]} Kxf6 {[%emt 0:00:06]} 45. Nxd4 {[%emt 0:05:36]} Nxd4 {[%emt 0:03:00]} 46. Qg5+ {[%emt 0:00:12]} Kg7 {[%emt 0:00:45]} 47. Qe5+ {[%emt 0:00:06]} Kg8 {[%emt 0:00:07]} 48. Qxd4 {[%emt 0:00:10]} Qb3 {[%emt 0:00:19]} 49. Bf3 {[%emt 0:05:36]} Qxd3 {[%emt 0:00:15]} 50. Qxd3 {[%emt 0:00:08]} Bxd3 {[%emt 0:00:06]} 51. Bxd5 {[%emt 0:00:04]} 1/2-1/2